Cogmind - Beta 14 @@@ ROGUE MODE // 2025.01.16 @ 04:15:14 Player: Nikolaos Result: Destroyed by S-10 Pest with Light Assault Rifle Performance ------------- Evolutions (0) 0 Regions Visited (1) 200 Robots Destroyed (11) 55 Value Destroyed (173) 173 Prototype IDs (0) 0 Alien Tech Used (0) 0 Bonus (0) 0 TOTAL SCORE: 428 Bonus ------- None Cogmind --------- Core Integrity 0/250 Matter 289/300 Energy 94/100 System Corruption 0% Temperature Cool (0) Movement Rolling (110) Ox2 Location -10/Materials Parts ------- > --- POWER (1) -------- (None) > --- PROPULSION (2) --- Wheel > --- UTILITY (2) ------ Large Storage Unit > --- WEAPON (2) ------- Light Assault Rifle > --- INVENTORY (15) --- Light Ion Engine Peak State ------------ > --- POWER ------------ Light Ion Engine > --- PROPULSION ------- Wheel Wheel > --- UTILITY ---------- Large Storage Unit Improved Terrain Scanner > --- WEAPON ----------- Light Assault Rifle Light Assault Rifle > --- INVENTORY -------- Light Ion Engine Wheel Wheel [Rating: 9] Favorites ----------- Power Light Ion Engine Engine Light Ion Engine Propulsion Wheel Wheel Wheel Utility Improved Terrain Scanner Device Improved Terrain Scanner Storage Large Storage Unit Weapon Light Assault Rifle Energy Gun Small Laser Ballistic Gun Light Assault Rifle Build | -11 -10 ------- Run | Yrd Mat Slots Evolved . | . . Power . | . . Propulsion . | . . Utility . | . . Weapon . | . . Parts Attached 16 | 6 10 Power 2 | 1 1 Engine 2 | 1 1 Core . | . . Reactor . | . . Propulsion 6 | 2 4 Treads . | . . Leg . | . . Wheel 6 | 2 4 Hover . | . . Flight . | . . Utility 2 | 1 1 Device 1 | 1 . Storage 1 | . 1 Processor . | . . Hackware . | . . Protection . | . . Artifact . | . . Weapon 6 | 2 4 Energy Gun 1 | 1 . Energy Cannon . | . . Ballistic Gun 5 | 1 4 Ballistic Cannon . | . . Launcher . | . . Special Weapon . | . . Impact Weapon . | . . Slashing Weapon . | . . Piercing Weapon . | . . Special Melee Weapon . | . . Unidentified Prototypes . | . . Parts Lost 5 | . 5 Power 2 | . 2 Propulsion 2 | . 2 Utility 1 | . 1 Weapon . | . . Highest Loss Streak 4 | . 4 To Critical Strikes . | . . Average Slot Usage (%) 75 | . 75 Engine 11 | . 11 Wheel 22 | . 22 Device 11 | . 11 Storage 9 | . 9 Energy Gun 3 | . 3 Ballistic Gun 16 | . 16 Peak Build Rating 9 | 8 9 Average Rating 6 | 4 7 On Entrance 4 | . 8 Naked Turns . | . . Heaviest Build 28 | 6 28 Greatest Support 20 | 20 20 Greatest Overweight (x) 8 | . 8 Average Overweight (x) . | . . Largest Inventory Capacity 15 | 5 15 Average Capacity 9 | 5 11 Most Carried 5 | 4 5 Average Carried 2 | 2 2 Final Capacity 15 | 5 15 Final Carried 3 | 3 1 Class Distribution -------------------- 63% | Mutant 36% | Scavenger-Mutant Dominant Class ---------------- Scavenger-Mutant | -10/Materials Resources | -11 -10 ----------- Run | Yrd Mat Matter Collected 365 | 275 90 Remotely . | . . Salvage Created 274 | 94 180 Parts 27 | 11 16 Haulers Intercepted . | . . Recyclers Shooed 1 | . 1 Parts Field Recycled . | . . Retrieved Matter . | . . Parts Self-Destructed . | . . Prevented . | . . Kills | -11 -10 ------- Run | Yrd Mat Combat Hostiles Destroyed 7 | 1 6 Melee 1 | . 1 Guns 6 | 1 5 Classes Destroyed 5 | 3 2 Worker 1 | 1 . Tunneler 2 | 2 . Watcher 1 | . 1 Swarmer 4 | . 4 Grunt 3 | 1 2 Best Kill Streak 3 | 2 3 Combat Bots Only 3 | 1 3 Max Kills in Single Turn 1 | 1 1 Gunslinging . | . . Exploded . | . . Melee 1 | . 1 Uniques/NPCs Destroyed . | . . Combat | -11 -10 -------- Run | Yrd Mat Hostile Shots Fired 83 | 8 75 Missed 19 | 3 16 Damage Taken 565 | 55 510 Core 253 | 10 243 Absorbed by Shields . | . . Core Remaining (%) 96 | 96 . Volleys Fired 31 | 15 16 Largest 2 | 2 2 Hottest 60 | 60 60 Shots Fired 61 | 30 31 Gun 61 | 30 31 Cannon . | . . Launcher . | . . Special . | . . Kinetic 42 | 15 27 Thermal 19 | 15 4 Explosive . | . . Electromagnetic . | . . Robot Hit Streak 8 | 8 8 Robot Miss Streak 2 | 2 2 Penetration Max . | . . Secondary Targets 1 | . 1 Max Gunslinging Chain 1 | . 1 Shots Hit Robots 41 | 19 22 Core Hits 19 | 7 12 Critical Kills . | . . Critical Parts Destroyed . | . . Critical Strikes . | . . Melee Attacks . | . . Impact . | . . Slashing . | . . Piercing . | . . Sneak Attacks . | . . Combat Hostiles . | . . Follow-up Attacks . | . . Damage Inflicted 390 | 185 205 Guns 368 | 185 183 Cannons . | . . Explosions . | . . Melee . | . . Ramming 22 | . 22 Kinetic 241 | 70 171 Thermal 127 | 115 12 Explosive . | . . Electromagnetic . | . . Impact . | . . Slashing . | . . Piercing . | . . Highest Corruption . | . . Average Corruption . | . . Corruption Purged . | . . Corruption Blocked . | . . Overload Shots . | . . Overflow Damage . | . . Projectiles . | . . Explosions . | . . Melee . | . . Knockbacks . | . . Impact . | . . Kinetic . | . . Secondary . | . . Self-Inflicted Damage 8 | . 8 Shots . | . . Rammed 9 | . 9 Targets Rammed 9 | . 9 Kicked . | . . Crushed . | . . Highest Temperature 70 | 70 40 Average Temperature 23 | 28 15 Received Heat Transfer 78 | 30 48 Siege Activations . | . . Robots Corrupted . | . . Combat Hostiles . | . . Parts Fried . | . . Impact Corruptions . | . . Robots Melted . | . . Combat Hostiles . | . . Parts Melted . | . . Heat Transferred 275 | 250 25 Parts Sabotaged . | . . Parts Stolen . | . . Parts Stripped . | . . Power Chain Reactions . | . . Alert | -11 -10 ------- Run | Yrd Mat Peak Influence 144 | 35 144 Initial 22 | . 22 Average 67 | 12 96 Maximum Alert Level . | . . Low Security (%) 100 | 100 100 Level 1 . | . . Level 2 . | . . Level 3 . | . . Level 4 . | . . Level 5 . | . . High Security . | . . Max Security . | . . Squads Dispatched 1 | . 1 Investigation . | . . Extermination . | . . Reinforcement 1 | . 1 Assault . | . . Garrison . | . . Intercept . | . . Searches Triggered . | . . Construction Impeded . | . . Haulers Reinforced . | . . Active Scanning Responses . | . . Cargo Convoy Interrupts . | . . Stealth | -11 -10 --------- Run | Yrd Mat Distress Signals 1 | . 1 Communications Jammed . | . . Distress Signals . | . . Times Spotted 13 | 1 12 Peak Tracking Total 4 | 1 4 Tactical Retreats 1 | . 1 Traps | -11 -10 ------- Run | Yrd Mat Traps Triggered 1 | . 1 Indirectly . | . . Trap Hack Attempts . | . . Triggered . | . . Disarmed . | . . Reprogrammed . | . . Reused . | . . Traps Extracted . | . . Installed . | . . Triggered . | . . Machines | -11 -10 ---------- Run | Yrd Mat Machines Disabled . | . . Max in Single Turn . | . . Machines Repaired . | . . Machines Dismantled . | . . Machines Sabotaged . | . . Overloaded Fab Kills . | . . Hacking | -11 -10 --------- Run | Yrd Mat Machines Accessed . | . . Terminals . | . . Fabricators . | . . Repair Stations . | . . Recycling Units . | . . Scanalyzers . | . . Garrison Access . | . . Total Hacks . | . . Successful . | . . Failed . | . . Catastrophic . | . . Database Lockouts . | . . Manual . | . . Terminals . | . . Fabricators . | . . Repair Stations . | . . Recycling Units . | . . Scanalyzers . | . . Garrison Access . | . . Terminal Hacks . | . . Fabricator Hacks . | . . Repair Station Hacks . | . . Recycling Unit Hacks . | . . Scanalyzer . | . . Garrison Access Hacks . | . . Unauthorized Hacks . | . . Terminals . | . . Fabricators . | . . Repair Stations . | . . Recycling Units . | . . Scanalyzers . | . . Garrison Access . | . . Data Cores Recovered . | . . Used . | . . Hacking Detections . | . . Full Trace Events . | . . Feedback Events . | . . Feedback Blocked . | . . Robot Schematics Acquired . | . . Robots Built . | . . Authchips . | . . Time . | . . Total Robot Build Rating . | . . Part Schematics Acquired . | . . Parts Built . | . . Authchips . | . . Time . | . . Total Part Build Rating . | . . Parts Repaired . | . . Time . | . . Parts Recycled . | . . Recycled Matter . | . . Retrieved Matter . | . . Retrieved Components . | . . Parts Scanalyzed . | . . Part Schematics Acquired . | . . Parts Damaged . | . . Bothacking | -11 -10 ------------ Run | Yrd Mat Used RIF Installer . | . . Robots Hacked . | . . Non-combat . | . . Combat . | . . Robot Hacks Applied . | . . Relay Couplers Released . | . . Fabnet Peak Effective % . | . . Robots Rewired . | . . Allies Hacked . | . . Hacks Repelled . | . . Allies | -11 -10 -------- Run | Yrd Mat Total Allies . | . . Largest Group . | . . Highest-Rated Group . | . . Highest-Rated Ally . | . . Total Orders . | . . Ally Attacks . | . . Total Damage . | . . Kills . | . . Allies Corrupted . | . . Allies Melted . | . . Intel | -11 -10 ------- Run | Yrd Mat Robot Analysis Total . | . . Derelict Logs Recovered . | . . Drone Launches . | . . Drone Recoveries . | . . Exploration | -11 -10 ------------- Run | Yrd Mat Turns Passed 353 | 123 230 Spaces Moved 234 | 91 143 Core 25 | 22 3 Treads . | . . Legs . | . . Wheels 209 | 69 140 Hover . | . . Flight . | . . Fastest Speed 50 | 50 80 Average Speed 88 | 72 98 Slowest Speed 450 | 80 450 Overloaded Moves . | . . Propulsion Burnouts . | . . Robots Hopped . | . . Cave-ins Triggered . | . . Exploration Rate (%) 18 | 7 29 Regions Visited 1 Branch Regions . Pre-discovered Areas . | . . Known Exits Taken . | . . Unknown Exits Taken 1 | 1 . Scrap Searched . | . . Spaces Dug . | . . Terrain Destroyed . | . . Melee . | . . Projectile . | . . AOE . | . . Terrain Rammed . | . . Walls Destroyed . | . . Machines Disabled . | . . Actions | -11 -10 --------- Run | Yrd Mat Total 319 | 120 199 Wait 14 | . 14 Move 233 | 90 143 Hop . | . . Pick Up 14 | 9 5 Fast Attach . | . . Attach 11 | 6 5 Detach . | . . Swap 5 | . 5 Drop 2 | . 2 Fire 31 | 15 16 Melee . | . . Ram 9 | . 9 Kick . | . . Crush . | . . Escape Stasis . | . . Rewire . | . . Trap . | . . Miscellaneous . | . . Route ------- -11/Scrapyard -10/Materials (discovered 1 exit: [*Min]) History --------- Turn | Location | Event 2 | -11/Scrapyard | Met Revision 17 61 | -11/Scrapyard | Discovered new exit (range 8) 124 | -11/Scrapyard | Entered Materials 288 | -10/Materials | Discovered new exit (range 7) 328 | -10/Materials | Core integrity fell below 50% 342 | -10/Materials | Core integrity fell below 20% 354 | -10/Materials | Destroyed by S-10 Pest with Light Assault Rifle Last Messages --------------- Triggered Blade Trap. Massive razor-sharp blades shoot up from within the floor. Lgt. Assault Rifle severed. Wheel severed. O-16 Technician sends out distress signal. ALERT: Hostiles spotted, dispatching reinforcements to Terminal M007. K-01 Serf collects debris. Imp. Terrain Scanner destroyed. Wheel destroyed. S-10 Pest destroyed. Ion Engine destroyed. Slammed into S-10 Pest. Destabilizing: Core damaged (-12). Slammed into S-10 Pest. Acquired 3 matter. Wheel destroyed. Slammed into S-10 Pest. S-10 Pest destroyed. [Achievement: Fist Fight] Acquired Lgt. Assault Rifle. Map ----- +----------------------------------------------------+ | ??????# ?????????# #??#?## """ # #??? | | ??????# ????????## ##????# # #??? | | ??????# ?????????# ##+############## #??? | | ?????## ##???????# # #??## ##?? | | ?????# ""??????## # ! #??#=* #?? | | ?????# "??##??# # #### T" #?? | | ????# !"??#??## # """ """ +[ == " #?? | | ?????# < "???????# # """ """ #### = #?? | | ?????# |???????# # """ """ #??#* #?? | | ?????# ????????# # #?########?? | | ?????# "?"??????# ######+######????#?????? | | ??????# ########## #### #?????????????? | | ??????# # ### = #?????????????? | | ??????+ [[+ + % %T%!#???????????#?? | | ??????# =# ### = #?????????????? | | ??????# # #?######## #?????????????? | | ????#?# # #????????## ##???????#?????? | | ??????# # #?????? ??# #????#???#???#?? | | ??????# ############?? ??# #?????#???#????? | | ??????# +?????+ #?????????????#? | | ###### #?????# #?#??????#?????? | | #?? ??# #??????????????? | | ##### #?????# #??????????????? | | ?????# ####### #??????????????? | | ?????# #=%%% # #??????????????? | | ?????# ###/### # *%@s# #?? ???????????? | | ?????####### # # """# +??????????????? | | ???????????# # + """# #??????????????? | | ???????????# + # """# #??????????????? | | ???????????# # # """# ???????????????? | | ????????#??# # ### #??????????????????? | | #??????????# # #?#######??????????????????? | | ???????????# # #??????????????????????????? | | ???"????#??# # #??????????????????????????? | | ???????????# # #??????????????????????????? | | ???????????# !# #??????????????????????????? | | ???????????# # #??????????????????????????? | | ???????????# # ???????????????????????????? | | ???????????####### ???????????????????????????? | | ?????????????????? ???????????????????????????? | | ?????????????????? ???????????????????????????? | | ?????????????????? ???????????????????????????? | | ??????????????????!???????????????????????????? | | ??????????????????#???????????????????????????? | | ??????????????????????????????????????????????? | | | | | | | | | | | +----------------------------------------------------+ Best States ------------- Heat Dissipation 25 Energy Generation 10 Energy Capacity 250 Matter Stores 300 Matter Capacity 300 Sight Range 16 Terrain Scan Range 16 Terrain Scan Density 10 Evasion (%) 50 Item Schematics ----------------- None Robot Schematics ------------------ None Fabricated ------------ Nothing Alien Tech Used ----------------- None Achievements -------------- Fist Fight Challenges ------------ None Game ------ Seed ElectrostormCoreFacilitator Manual? 0 Play Time 00:10:40 Cumulative 1.2 hours Start 2025.01.16 @ 04:06:31 End 2025.01.16 @ 04:15:14 Sessions 1 Manual Loads 0 Difficulty Rogue Special Mode None Game No. 2 Rogue 2 Adventurer 0 Explorer 0 Win Type - Total 0 Types 0/0/0/0/0/0/0/0/0 Lore% 0 Gallery% 2 Achievement% 5 Wizard Run 0 Options --------- Layout 0 ASCII 0 Keyboard 0 Movement Arrows Keybinds 0 Fullscreen 1 Font 18/TerminusBold Map View 76x50 Zoom Use 0% Tactical HUD 0 Map Filters NONE Filters NONE Steam 1 RUN: 8cc12b25-6b4d-41cc-a509-1f84a891927a